{"text_format":"1","workbook":"xlsx","n_sheets":2,"sheets":["Cuentas","RatiosE"],"not_rendered":{"charts":0,"images":2,"macros":1,"external_links":0,"defined_names":2,"comments":0,"pivot_tables":0},"unopened":[],"bounds":{"document_bytes":16777216,"sheet_cells":100000,"rows_first":2000,"rows_last":500,"rows_between":2000,"halvings":0,"cell_chars":16384,"cell_head_chars":4096},"cells_cut":0,"cells_raw":0,"read":"whole","date_system":"1900"}

{"sheet":"Cuentas","index":0,"n_rows":105,"n_cols":7,"rows_kept":105,"cut":false,"hidden":false,"merged":[[6,2,6,6],[7,2,7,6],[79,0,79,6],[0,2,0,6],[13,0,13,6],[36,0,36,6],[1,2,1,6],[2,2,2,6],[3,2,3,6],[4,2,4,6],[5,2,5,6]]}
[null,null,"DATOS DE IDENTIFICACIÓN"]
[]
["Tipo de Formulario"]
[]
["Actividad Principal",2009]
["CNAE",2001]
["Código Postal",1024]
["Unidades"]
["Fecha de Inicio",1102]
["Fecha de Cierre",1101]
["Personal medio FIJO",4001]
["Personal medio NO FIJO",4002]
[null,null,{"$f":"IF(C10<>0,YEAR(C10),\"\")","v":""},{"$f":"IF(D10<>0,YEAR(D10),\"\")","v":""},"","",""]
["ACTIVO"]
["A) ACTIVO NO CORRIENTE",11000]
["I. Inmovilizado intangible",11100]
["II. Inmovilizado material",11200]
["III. Inversiones Inmobiliarias",11300]
["IV. Inversiones en empresas del grupo y asociadas a largo plazo",11400]
["V. Inversiones financieras a largo plazo",11500]
["VI. Activos por impuesto diferido",11600]
["VII. Deudores comerciales no corrientes",11700]
["B) ACTIVO CORRIENTE",12000]
["I. Activos no corrientes mantenidos para la venta",12100]
["II. Existencias",12200]
["III. Deudores comerciales y otras cuentas a cobrar",12300]
["1. Clientes por ventas y prestaciones de servicios",12380]
["a) a largo plazo",12381]
["b) a corto plazo",12382]
["2. Accionistas (socios) por desembolsos exigidos",12370]
["3. Otros deudores",12390]
["IV. Inversiones en empresas del grupo y asociadas a corto plazo",12400]
["V. Inversiones financieras a corto plazo",12500]
["VI. Periodificaciones a corto plazo",12600]
["VII. Efectivo y otros activos líquidos equivalentes",12700]
["TOTAL ACTIVO (A+B)",10000]
["PATRIMONIO NETO Y PASIVO"]
["A) PATRIMONIO NETO",20000]
["A-1) Fondos Propios",21000]
["I. Capital",21100]
["1. Capital escriturado",21110]
["2. (Capital no exigido)",21120]
["II. Prima de emisión",21200]
["III. Reservas",21300]
["IV. (Acciones y participaciones en patrimonio propias)",21400]
["V. Resultados de ejercicios anteriores",21500]
["VI. Otras aportaciones de socios",21600]
["VII. Resultado del ejercicio",21700]
["VIII. (Dividendo a cuenta)",21800]
["IX. Otros instrumentos de patrimonio neto",21900]
["A-2) Ajustes en patrimonio neto",22000]
["A-3) Subvenciones, donaciones y legados recibidos",23000]
["B) PASIVO NO CORRIENTE",31000]
["I. Provisiones a largo plazo",31100]
["II. Deudas a largo plazo",31200]
["1. Deudas con entidades de crédito",31220]
["2. Acreedores por arrendamiento financiero",31230]
["3. Otras deudas a largo plazo",31290]
["III. Deudas con empresas del grupo y asociadas a largo plazo",31300]
["IV. Pasivos por impuesto diferido",31400]
["V. Periodificaciones a largo plazo",31500]
["VI Acreedores comerciales no corrientes",31600]
["VII. Deudas con características especiales a largo plazo",31700]
["C) PASIVO CORRIENTE",32000]
["I. Pasivos vinculados con activos no corrientes mantenidos para la venta",32100]
["II. Provisiones a corto plazo",32200]
["III. Deudas a corto plazo",32300]
["1. Deudas con entidades de crédito",32320]
["2. Acreedores por arrendamiento financiero",32330]
["3. Otras deudas a corto plazo",32390]
["IV. Deudas con empresas del grupo y asociadas a corto plazo",32400]
["V. Acreedores comerciales y otras cuentas a pagar",32500]
["1. Proveedores",32580]
["a) Proveedores a largo plazo",32581]
["b) Proveedores a corto plazo",32582]
["2. Otros acreedores",32590]
["VI. Periodificaciones a corto plazo",32600]
["VII. Deudas con características especiales a corto plazo",32700]
["TOTAL PATRIMONIO NETO Y PASIVO (A+B+C)",30000]
["PÉRDIDAS Y GANANCIAS"]
["1. Importe neto de la cifra de negocios",40100]
["2. Variación de existencias de PPTT y en curso de fabricación",40200]
["3. Trabajos realizados por la empresa para su activo",40300]
["4. Aprovisionamientos",40400]
["5. Otros ingresos de explotación",40500]
["6. Gastos de personal",40600]
["7. Otros gastos de explotación",40700]
["8. Amortización del inmovilizado",40800]
["9. Imputación de subvenciones de inmovilizados no fin. y otras",40900]
["10. Exceso de provisiones",41000]
["11. Deterioro y resultado por enajenaciones inmovilizado",41100]
["12. Diferencia negativa de combinaciones de negocio",41200]
["13. Otros Resultados",41300]
["A) RESULTADO DE EXPLOTACIÓN (1+2+3+4+5+6+7+8+9+10+11+12+13)",49100]
["14. Ingresos financieros",41400]
["a) Imputación sub., dona., y legados de carácter financiero",41430]
["b) Otros ingresos financieros",41490]
["15. Gastos financieros",41500]
["16. Variación de valor razonable en instrumentos financieros",41600]
["17. Diferencias de cambio",41700]
["18. Deterioro y resultado por enajenaciones de instrumentos financieros",41800]
["B) RESULTADO FINANCIERO (14+15+16+17+18)",49200]
["C) RESULTADO ANTES DE IMPUESTOS (A+B)",49300]
["19. Impuesto sobre beneficios",41900]
["D) RESULTADO DEL EJERCICIO (C+19)",49500]

{"sheet":"RatiosE","index":1,"n_rows":41,"n_cols":6,"rows_kept":41,"cut":false,"hidden":false,"merged":[[5,0,6,0],[31,0,31,1],[34,0,34,1],[39,0,39,1],[7,0,7,1],[14,0,14,1],[21,0,21,1],[23,0,23,1],[28,0,28,1],[5,1,5,5]]}
[]
[]
[]
[]
[]
["RATIOS","VALOR"]
[null,{"$f":"Cuentas!C13","v":""},{"$f":"Cuentas!D13","v":""},{"$f":"Cuentas!E13","v":""},{"$f":"Cuentas!F13","v":""},{"$f":"Cuentas!G13","v":""}]
["LIQUIDEZ"]
["Activo corriente / Deudas a corto plazo",{"$f":"IF((Cuentas!C62+Cuentas!C65+Cuentas!C67+Cuentas!C72+Cuentas!C78)<>0,(Cuentas!C22+Cuentas!C23-Cuentas!C24-Cuentas!C30)/(Cuentas!C62+Cuentas!C65+Cuentas!C67+Cuentas!C72+Cuentas!C78),\"n.d.\")","v":"n.d."},{"$f":"IF((Cuentas!D62+Cuentas!D65+Cuentas!D67+Cuentas!D72+Cuentas!D78)<>0,(Cuentas!D22+Cuentas!D23-Cuentas!D24-Cuentas!D30)/(Cuentas!D62+Cuentas!D65+Cuentas!D67+Cuentas!D72+Cuentas!D78),\"n.d.\")","v":"n.d."},{"$f":"IF((Cuentas!E62+Cuentas!E65+Cuentas!E67+Cuentas!E72+Cuentas!E78)<>0,(Cuentas!E22+Cuentas!E23-Cuentas!E24-Cuentas!E30)/(Cuentas!E62+Cuentas!E65+Cuentas!E67+Cuentas!E72+Cuentas!E78),\"n.d.\")","v":"n.d."},{"$f":"IF((Cuentas!F62+Cuentas!F65+Cuentas!F67+Cuentas!F72+Cuentas!F78)<>0,(Cuentas!F22+Cuentas!F23-Cuentas!F24-Cuentas!F30)/(Cuentas!F62+Cuentas!F65+Cuentas!F67+Cuentas!F72+Cuentas!F78),\"n.d.\")","v":"n.d."},{"$f":"IF((Cuentas!G62+Cuentas!G65+Cuentas!G67+Cuentas!G72+Cuentas!G78)<>0,(Cuentas!G22+Cuentas!G23-Cuentas!G24-Cuentas!G30)/(Cuentas!G62+Cuentas!G65+Cuentas!G67+Cuentas!G72+Cuentas!G78),\"n.d.\")","v":"n.d."}]
["(Realizable + Disponible) / Deudas a corto plazo",{"$f":"IF((Cuentas!C62+Cuentas!C65+Cuentas!C67+Cuentas!C72+Cuentas!C78)<>0,(Cuentas!C32+Cuentas!C33+Cuentas!C35)/(Cuentas!C62+Cuentas!C65+Cuentas!C67+Cuentas!C72+Cuentas!C78),\"n.d.\")","v":"n.d."},{"$f":"IF((Cuentas!D62+Cuentas!D65+Cuentas!D67+Cuentas!D72+Cuentas!D78)<>0,(Cuentas!D32+Cuentas!D33+Cuentas!D35)/(Cuentas!D62+Cuentas!D65+Cuentas!D67+Cuentas!D72+Cuentas!D78),\"n.d.\")","v":"n.d."},{"$f":"IF((Cuentas!E62+Cuentas!E65+Cuentas!E67+Cuentas!E72+Cuentas!E78)<>0,(Cuentas!E32+Cuentas!E33+Cuentas!E35)/(Cuentas!E62+Cuentas!E65+Cuentas!E67+Cuentas!E72+Cuentas!E78),\"n.d.\")","v":"n.d."},{"$f":"IF((Cuentas!F62+Cuentas!F65+Cuentas!F67+Cuentas!F72+Cuentas!F78)<>0,(Cuentas!F32+Cuentas!F33+Cuentas!F35)/(Cuentas!F62+Cuentas!F65+Cuentas!F67+Cuentas!F72+Cuentas!F78),\"n.d.\")","v":"n.d."},{"$f":"IF((Cuentas!G62+Cuentas!G65+Cuentas!G67+Cuentas!G72+Cuentas!G78)<>0,(Cuentas!G32+Cuentas!G33+Cuentas!G35)/(Cuentas!G62+Cuentas!G65+Cuentas!G67+Cuentas!G72+Cuentas!G78),\"n.d.\")","v":"n.d."}]
["(Realizable + Disponible) / Total activo",{"$f":"IF((Cuentas!C15+Cuentas!C23-Cuentas!C30)<>0,(Cuentas!C32+Cuentas!C33+Cuentas!C35)/(Cuentas!C15+Cuentas!C23-Cuentas!C30),\"n.d.\")","v":"n.d."},{"$f":"IF((Cuentas!D15+Cuentas!D23-Cuentas!D30)<>0,(Cuentas!D32+Cuentas!D33+Cuentas!D35)/(Cuentas!D15+Cuentas!D23-Cuentas!D30),\"n.d.\")","v":"n.d."},{"$f":"IF((Cuentas!E15+Cuentas!E23-Cuentas!E30)<>0,(Cuentas!E32+Cuentas!E33+Cuentas!E35)/(Cuentas!E15+Cuentas!E23-Cuentas!E30),\"n.d.\")","v":"n.d."},{"$f":"IF((Cuentas!F15+Cuentas!F23-Cuentas!F30)<>0,(Cuentas!F32+Cuentas!F33+Cuentas!F35)/(Cuentas!F15+Cuentas!F23-Cuentas!F30),\"n.d.\")","v":"n.d."},{"$f":"IF((Cuentas!G15+Cuentas!G23-Cuentas!G30)<>0,(Cuentas!G32+Cuentas!G33+Cuentas!G35)/(Cuentas!G15+Cuentas!G23-Cuentas!G30),\"n.d.\")","v":"n.d."}]
["(Activo corriente - Deudas a corto plazo) / Total activo ",{"$f":"IF((Cuentas!C15+Cuentas!C23-Cuentas!C30)<>0,(Cuentas!C22+Cuentas!C23-Cuentas!C24-Cuentas!C30-Cuentas!C62-Cuentas!C65-Cuentas!C67-Cuentas!C72-Cuentas!C78)/(Cuentas!C15+Cuentas!C23-Cuentas!C30),\"n.d.\")","v":"n.d."},{"$f":"IF((Cuentas!D15+Cuentas!D23-Cuentas!D30)<>0,(Cuentas!D22+Cuentas!D23-Cuentas!D24-Cuentas!D30-Cuentas!D62-Cuentas!D65-Cuentas!D67-Cuentas!D72-Cuentas!D78)/(Cuentas!D15+Cuentas!D23-Cuentas!D30),\"n.d.\")","v":"n.d."},{"$f":"IF((Cuentas!E15+Cuentas!E23-Cuentas!E30)<>0,(Cuentas!E22+Cuentas!E23-Cuentas!E24-Cuentas!E30-Cuentas!E62-Cuentas!E65-Cuentas!E67-Cuentas!E72-Cuentas!E78)/(Cuentas!E15+Cuentas!E23-Cuentas!E30),\"n.d.\")","v":"n.d."},{"$f":"IF((Cuentas!F15+Cuentas!F23-Cuentas!F30)<>0,(Cuentas!F22+Cuentas!F23-Cuentas!F24-Cuentas!F30-Cuentas!F62-Cuentas!F65-Cuentas!F67-Cuentas!F72-Cuentas!F78)/(Cuentas!F15+Cuentas!F23-Cuentas!F30),\"n.d.\")","v":"n.d."},{"$f":"IF((Cuentas!G15+Cuentas!G23-Cuentas!G30)<>0,(Cuentas!G22+Cuentas!G23-Cuentas!G24-Cuentas!G30-Cuentas!G62-Cuentas!G65-Cuentas!G67-Cuentas!G72-Cuentas!G78)/(Cuentas!G15+Cuentas!G23-Cuentas!G30),\"n.d.\")","v":"n.d."}]
["(Activo corriente - Deudas a corto plazo) / Cifra neta de negocios",{"$f":"IF((Cuentas!C15+Cuentas!C23-Cuentas!C30)<>0,(Cuentas!C22+Cuentas!C23-Cuentas!C24-Cuentas!C30-Cuentas!C62-Cuentas!C65-Cuentas!C67-Cuentas!C72-Cuentas!C78)/(Cuentas!C81),\"n.d.\")","v":"n.d."},{"$f":"IF((Cuentas!D15+Cuentas!D23-Cuentas!D30)<>0,(Cuentas!D22+Cuentas!D23-Cuentas!D24-Cuentas!D30-Cuentas!D62-Cuentas!D65-Cuentas!D67-Cuentas!D72-Cuentas!D78)/(Cuentas!D81),\"n.d.\")","v":"n.d."},{"$f":"IF((Cuentas!E15+Cuentas!E23-Cuentas!E30)<>0,(Cuentas!E22+Cuentas!E23-Cuentas!E24-Cuentas!E30-Cuentas!E62-Cuentas!E65-Cuentas!E67-Cuentas!E72-Cuentas!E78)/(Cuentas!E81),\"n.d.\")","v":"n.d."},{"$f":"IF((Cuentas!F15+Cuentas!F23-Cuentas!F30)<>0,(Cuentas!F22+Cuentas!F23-Cuentas!F24-Cuentas!F30-Cuentas!F62-Cuentas!F65-Cuentas!F67-Cuentas!F72-Cuentas!F78)/(Cuentas!F81),\"n.d.\")","v":"n.d."},{"$f":"IF((Cuentas!G15+Cuentas!G23-Cuentas!G30)<>0,(Cuentas!G22+Cuentas!G23-Cuentas!G24-Cuentas!G30-Cuentas!G62-Cuentas!G65-Cuentas!G67-Cuentas!G72-Cuentas!G78)/(Cuentas!G81),\"n.d.\")","v":"n.d."}]
["Capital circulante comercial / Cifra neta de negocios",{"$f":"IF((Cuentas!C81)<>0,(Cuentas!C22+Cuentas!C25+Cuentas!C27-Cuentas!C62)/(Cuentas!C81),\"n.d.\")","v":"n.d."},{"$f":"IF((Cuentas!D81)<>0,(Cuentas!D22+Cuentas!D25+Cuentas!D27-Cuentas!D62)/(Cuentas!D81),\"n.d.\")","v":"n.d."},{"$f":"IF((Cuentas!E81)<>0,(Cuentas!E22+Cuentas!E25+Cuentas!E27-Cuentas!E62)/(Cuentas!E81),\"n.d.\")","v":"n.d."},{"$f":"IF((Cuentas!F81)<>0,(Cuentas!F22+Cuentas!F25+Cuentas!F27-Cuentas!F62)/(Cuentas!F81),\"n.d.\")","v":"n.d."},{"$f":"IF((Cuentas!G81)<>0,(Cuentas!G22+Cuentas!G25+Cuentas!G27-Cuentas!G62)/(Cuentas!G81),\"n.d.\")","v":"n.d."}]
["ENDEUDAMIENTO"]
["Deudas totales / Total activo",{"$f":"IF((Cuentas!C15+Cuentas!C23-Cuentas!C30)<>0,(Cuentas!C55+Cuentas!C59+Cuentas!C62+Cuentas!C63+Cuentas!C65+Cuentas!C67+Cuentas!C72+Cuentas!C78)/(Cuentas!C15+Cuentas!C23-Cuentas!C30),\"n.d.\")","v":"n.d."},{"$f":"IF((Cuentas!D15+Cuentas!D23-Cuentas!D30)<>0,(Cuentas!D55+Cuentas!D59+Cuentas!D62+Cuentas!D63+Cuentas!D65+Cuentas!D67+Cuentas!D72+Cuentas!D78)/(Cuentas!D15+Cuentas!D23-Cuentas!D30),\"n.d.\")","v":"n.d."},{"$f":"IF((Cuentas!E15+Cuentas!E23-Cuentas!E30)<>0,(Cuentas!E55+Cuentas!E59+Cuentas!E62+Cuentas!E63+Cuentas!E65+Cuentas!E67+Cuentas!E72+Cuentas!E78)/(Cuentas!E15+Cuentas!E23-Cuentas!E30),\"n.d.\")","v":"n.d."},{"$f":"IF((Cuentas!F15+Cuentas!F23-Cuentas!F30)<>0,(Cuentas!F55+Cuentas!F59+Cuentas!F62+Cuentas!F63+Cuentas!F65+Cuentas!F67+Cuentas!F72+Cuentas!F78)/(Cuentas!F15+Cuentas!F23-Cuentas!F30),\"n.d.\")","v":"n.d."},{"$f":"IF((Cuentas!G15+Cuentas!G23-Cuentas!G30)<>0,(Cuentas!G55+Cuentas!G59+Cuentas!G62+Cuentas!G63+Cuentas!G65+Cuentas!G67+Cuentas!G72+Cuentas!G78)/(Cuentas!G15+Cuentas!G23-Cuentas!G30),\"n.d.\")","v":"n.d."}]
["Deudas con entidades de crédito / Total PN y pasivo",{"$f":"IF((Cuentas!C15+Cuentas!C23-Cuentas!C30)<>0,(Cuentas!C56+Cuentas!C57+Cuentas!C68+Cuentas!C69)/(Cuentas!C15+Cuentas!C23-Cuentas!C30),\"n.d.\")","v":"n.d."},{"$f":"IF((Cuentas!D15+Cuentas!D23-Cuentas!D30)<>0,(Cuentas!D56+Cuentas!D57+Cuentas!D68+Cuentas!D69)/(Cuentas!D15+Cuentas!D23-Cuentas!D30),\"n.d.\")","v":"n.d."},{"$f":"IF((Cuentas!E15+Cuentas!E23-Cuentas!E30)<>0,(Cuentas!E56+Cuentas!E57+Cuentas!E68+Cuentas!E69)/(Cuentas!E15+Cuentas!E23-Cuentas!E30),\"n.d.\")","v":"n.d."},{"$f":"IF((Cuentas!F15+Cuentas!F23-Cuentas!F30)<>0,(Cuentas!F56+Cuentas!F57+Cuentas!F68+Cuentas!F69)/(Cuentas!F15+Cuentas!F23-Cuentas!F30),\"n.d.\")","v":"n.d."},{"$f":"IF((Cuentas!G15+Cuentas!G23-Cuentas!G30)<>0,(Cuentas!G56+Cuentas!G57+Cuentas!G68+Cuentas!G69)/(Cuentas!G15+Cuentas!G23-Cuentas!G30),\"n.d.\")","v":"n.d."}]
["Deudas a corto plazo / Deudas totales",{"$f":"IF((Cuentas!C55+Cuentas!C59+Cuentas!C62+Cuentas!C63+Cuentas!C65+Cuentas!C67+Cuentas!C72+Cuentas!C78)<>0,(Cuentas!C62+Cuentas!C65+Cuentas!C67+Cuentas!C72+Cuentas!C78)/(Cuentas!C55+Cuentas!C59+Cuentas!C62+Cuentas!C63+Cuentas!C65+Cuentas!C67+Cuentas!C72+Cuentas!C78),\"n.d.\")","v":"n.d."},{"$f":"IF((Cuentas!D55+Cuentas!D59+Cuentas!D62+Cuentas!D63+Cuentas!D65+Cuentas!D67+Cuentas!D72+Cuentas!D78)<>0,(Cuentas!D62+Cuentas!D65+Cuentas!D67+Cuentas!D72+Cuentas!D78)/(Cuentas!D55+Cuentas!D59+Cuentas!D62+Cuentas!D63+Cuentas!D65+Cuentas!D67+Cuentas!D72+Cuentas!D78),\"n.d.\")","v":"n.d."},{"$f":"IF((Cuentas!E55+Cuentas!E59+Cuentas!E62+Cuentas!E63+Cuentas!E65+Cuentas!E67+Cuentas!E72+Cuentas!E78)<>0,(Cuentas!E62+Cuentas!E65+Cuentas!E67+Cuentas!E72+Cuentas!E78)/(Cuentas!E55+Cuentas!E59+Cuentas!E62+Cuentas!E63+Cuentas!E65+Cuentas!E67+Cuentas!E72+Cuentas!E78),\"n.d.\")","v":"n.d."},{"$f":"IF((Cuentas!F55+Cuentas!F59+Cuentas!F62+Cuentas!F63+Cuentas!F65+Cuentas!F67+Cuentas!F72+Cuentas!F78)<>0,(Cuentas!F62+Cuentas!F65+Cuentas!F67+Cuentas!F72+Cuentas!F78)/(Cuentas!F55+Cuentas!F59+Cuentas!F62+Cuentas!F63+Cuentas!F65+Cuentas!F67+Cuentas!F72+Cuentas!F78),\"n.d.\")","v":"n.d."},{"$f":"IF((Cuentas!G55+Cuentas!G59+Cuentas!G62+Cuentas!G63+Cuentas!G65+Cuentas!G67+Cuentas!G72+Cuentas!G78)<>0,(Cuentas!G62+Cuentas!G65+Cuentas!G67+Cuentas!G72+Cuentas!G78)/(Cuentas!G55+Cuentas!G59+Cuentas!G62+Cuentas!G63+Cuentas!G65+Cuentas!G67+Cuentas!G72+Cuentas!G78),\"n.d.\")","v":"n.d."}]
["Capacidad devolución préstamos (Resultado económico bruto / Deuda neta total) ",{"$f":"IF((Cuentas!C53-Cuentas!C54+Cuentas!C64-Cuentas!C66-Cuentas!C71-Cuentas!C32-Cuentas!C33-Cuentas!C35)<>0,(Cuentas!C81+Cuentas!C82+Cuentas!C83+Cuentas!C84+Cuentas!C85+Cuentas!C86+Cuentas!C87)/(Cuentas!C53-Cuentas!C54+Cuentas!C64-Cuentas!C66-Cuentas!C71-Cuentas!C32-Cuentas!C33-Cuentas!C35),\"n.d.\")","v":"n.d."},{"$f":"IF((Cuentas!D53-Cuentas!D54+Cuentas!D64-Cuentas!D66-Cuentas!D71-Cuentas!D32-Cuentas!D33-Cuentas!D35)<>0,(Cuentas!D81+Cuentas!D82+Cuentas!D83+Cuentas!D84+Cuentas!D85+Cuentas!D86+Cuentas!D87)/(Cuentas!D53-Cuentas!D54+Cuentas!D64-Cuentas!D66-Cuentas!D71-Cuentas!D32-Cuentas!D33-Cuentas!D35),\"n.d.\")","v":"n.d."},{"$f":"IF((Cuentas!E53-Cuentas!E54+Cuentas!E64-Cuentas!E66-Cuentas!E71-Cuentas!E32-Cuentas!E33-Cuentas!E35)<>0,(Cuentas!E81+Cuentas!E82+Cuentas!E83+Cuentas!E84+Cuentas!E85+Cuentas!E86+Cuentas!E87)/(Cuentas!E53-Cuentas!E54+Cuentas!E64-Cuentas!E66-Cuentas!E71-Cuentas!E32-Cuentas!E33-Cuentas!E35),\"n.d.\")","v":"n.d."},{"$f":"IF((Cuentas!F53-Cuentas!F54+Cuentas!F64-Cuentas!F66-Cuentas!F71-Cuentas!F32-Cuentas!F33-Cuentas!F35)<>0,(Cuentas!F81+Cuentas!F82+Cuentas!F83+Cuentas!F84+Cuentas!F85+Cuentas!F86+Cuentas!F87)/(Cuentas!F53-Cuentas!F54+Cuentas!F64-Cuentas!F66-Cuentas!F71-Cuentas!F32-Cuentas!F33-Cuentas!F35),\"n.d.\")","v":"n.d."},{"$f":"IF((Cuentas!G53-Cuentas!G54+Cuentas!G64-Cuentas!G66-Cuentas!G71-Cuentas!G32-Cuentas!G33-Cuentas!G35)<>0,(Cuentas!G81+Cuentas!G82+Cuentas!G83+Cuentas!G84+Cuentas!G85+Cuentas!G86+Cuentas!G87)/(Cuentas!G53-Cuentas!G54+Cuentas!G64-Cuentas!G66-Cuentas!G71-Cuentas!G32-Cuentas!G33-Cuentas!G35),\"n.d.\")","v":"n.d."}]
["Cobertura de gastos financieros (Gastos financieros y asimilados / Resultado económico bruto)",{"$f":"IF((Cuentas!C81+Cuentas!C82+Cuentas!C83+Cuentas!C84+Cuentas!C85+Cuentas!C86+Cuentas!C87)<>0,(-1*Cuentas!C98)/(Cuentas!C81+Cuentas!C82+Cuentas!C83+Cuentas!C84+Cuentas!C85+Cuentas!C86+Cuentas!C87),\"n.d.\")","v":"n.d."},{"$f":"IF((Cuentas!D81+Cuentas!D82+Cuentas!D83+Cuentas!D84+Cuentas!D85+Cuentas!D86+Cuentas!D87)<>0,(-1*Cuentas!D98)/(Cuentas!D81+Cuentas!D82+Cuentas!D83+Cuentas!D84+Cuentas!D85+Cuentas!D86+Cuentas!D87),\"n.d.\")","v":"n.d."},{"$f":"IF((Cuentas!E81+Cuentas!E82+Cuentas!E83+Cuentas!E84+Cuentas!E85+Cuentas!E86+Cuentas!E87)<>0,(-1*Cuentas!E98)/(Cuentas!E81+Cuentas!E82+Cuentas!E83+Cuentas!E84+Cuentas!E85+Cuentas!E86+Cuentas!E87),\"n.d.\")","v":"n.d."},{"$f":"IF((Cuentas!F81+Cuentas!F82+Cuentas!F83+Cuentas!F84+Cuentas!F85+Cuentas!F86+Cuentas!F87)<>0,(-1*Cuentas!F98)/(Cuentas!F81+Cuentas!F82+Cuentas!F83+Cuentas!F84+Cuentas!F85+Cuentas!F86+Cuentas!F87),\"n.d.\")","v":"n.d."},{"$f":"IF((Cuentas!G81+Cuentas!G82+Cuentas!G83+Cuentas!G84+Cuentas!G85+Cuentas!G86+Cuentas!G87)<>0,(-1*Cuentas!G98)/(Cuentas!G81+Cuentas!G82+Cuentas!G83+Cuentas!G84+Cuentas!G85+Cuentas!G86+Cuentas!G87),\"n.d.\")","v":"n.d."}]
["Coste de la deuda (Gastos financieros y asimilados / Deuda neta total) ",{"$f":"IF((Cuentas!C53-Cuentas!C54+Cuentas!C64-Cuentas!C66-Cuentas!C71-Cuentas!C32-Cuentas!C33-Cuentas!C35)<>0,(-1*Cuentas!C98)/(Cuentas!C53-Cuentas!C54+Cuentas!C64-Cuentas!C66-Cuentas!C71-Cuentas!C32-Cuentas!C33-Cuentas!C35),\"n.d.\")","v":"n.d."},{"$f":"IF((Cuentas!D53-Cuentas!D54+Cuentas!D64-Cuentas!D66-Cuentas!D71-Cuentas!D32-Cuentas!D33-Cuentas!D35)<>0,(-1*Cuentas!D98)/(Cuentas!D53-Cuentas!D54+Cuentas!D64-Cuentas!D66-Cuentas!D71-Cuentas!D32-Cuentas!D33-Cuentas!D35),\"n.d.\")","v":"n.d."},{"$f":"IF((Cuentas!E53-Cuentas!E54+Cuentas!E64-Cuentas!E66-Cuentas!E71-Cuentas!E32-Cuentas!E33-Cuentas!E35)<>0,(-1*Cuentas!E98)/(Cuentas!E53-Cuentas!E54+Cuentas!E64-Cuentas!E66-Cuentas!E71-Cuentas!E32-Cuentas!E33-Cuentas!E35),\"n.d.\")","v":"n.d."},{"$f":"IF((Cuentas!F53-Cuentas!F54+Cuentas!F64-Cuentas!F66-Cuentas!F71-Cuentas!F32-Cuentas!F33-Cuentas!F35)<>0,(-1*Cuentas!F98)/(Cuentas!F53-Cuentas!F54+Cuentas!F64-Cuentas!F66-Cuentas!F71-Cuentas!F32-Cuentas!F33-Cuentas!F35),\"n.d.\")","v":"n.d."},{"$f":"IF((Cuentas!G53-Cuentas!G54+Cuentas!G64-Cuentas!G66-Cuentas!G71-Cuentas!G32-Cuentas!G33-Cuentas!G35)<>0,(-1*Cuentas!G98)/(Cuentas!G53-Cuentas!G54+Cuentas!G64-Cuentas!G66-Cuentas!G71-Cuentas!G32-Cuentas!G33-Cuentas!G35),\"n.d.\")","v":"n.d."}]
["SOLVENCIA"]
["Patrimonio Neto / Total patrimonio neto y pasivo",{"$f":"IF((Cuentas!C15+Cuentas!C23-Cuentas!C30)<>0,(Cuentas!C39+Cuentas!C51+Cuentas!C52-Cuentas!C30)/(Cuentas!C15+Cuentas!C23-Cuentas!C30),\"n.d.\")","v":"n.d."},{"$f":"IF((Cuentas!D15+Cuentas!D23-Cuentas!D30)<>0,(Cuentas!D39+Cuentas!D51+Cuentas!D52-Cuentas!D30)/(Cuentas!D15+Cuentas!D23-Cuentas!D30),\"n.d.\")","v":"n.d."},{"$f":"IF((Cuentas!E15+Cuentas!E23-Cuentas!E30)<>0,(Cuentas!E39+Cuentas!E51+Cuentas!E52-Cuentas!E30)/(Cuentas!E15+Cuentas!E23-Cuentas!E30),\"n.d.\")","v":"n.d."},{"$f":"IF((Cuentas!F15+Cuentas!F23-Cuentas!F30)<>0,(Cuentas!F39+Cuentas!F51+Cuentas!F52-Cuentas!F30)/(Cuentas!F15+Cuentas!F23-Cuentas!F30),\"n.d.\")","v":"n.d."},{"$f":"IF((Cuentas!G15+Cuentas!G23-Cuentas!G30)<>0,(Cuentas!G39+Cuentas!G51+Cuentas!G52-Cuentas!G30)/(Cuentas!G15+Cuentas!G23-Cuentas!G30),\"n.d.\")","v":"n.d."}]
["GESTIÓN DE ACTIVOS"]
["Rotación del activo (Cifra neta de negocios / Total activo) ",{"$f":"IF((Cuentas!C15+Cuentas!C23-Cuentas!C30)<>0,Cuentas!C81/(Cuentas!C15+Cuentas!C23-Cuentas!C30),\"n.d.\")","v":"n.d."},{"$f":"IF((Cuentas!D15+Cuentas!D23-Cuentas!D30)<>0,Cuentas!D81/(Cuentas!D15+Cuentas!D23-Cuentas!D30),\"n.d.\")","v":"n.d."},{"$f":"IF((Cuentas!E15+Cuentas!E23-Cuentas!E30)<>0,Cuentas!E81/(Cuentas!E15+Cuentas!E23-Cuentas!E30),\"n.d.\")","v":"n.d."},{"$f":"IF((Cuentas!F15+Cuentas!F23-Cuentas!F30)<>0,Cuentas!F81/(Cuentas!F15+Cuentas!F23-Cuentas!F30),\"n.d.\")","v":"n.d."},{"$f":"IF((Cuentas!G15+Cuentas!G23-Cuentas!G30)<>0,Cuentas!G81/(Cuentas!G15+Cuentas!G23-Cuentas!G30),\"n.d.\")","v":"n.d."}]
["Rotación del activo no corriente (Cifra neta de negocios / Activo no corriente) ",{"$f":"IF((Cuentas!C15+Cuentas!C23-Cuentas!C30-Cuentas!C22-Cuentas!C23+Cuentas!C24+Cuentas!C30)<>0,Cuentas!C81/(Cuentas!C15+Cuentas!C23-Cuentas!C30-Cuentas!C22-Cuentas!C23+Cuentas!C24+Cuentas!C30),\"n.d.\")","v":"n.d."},{"$f":"IF((Cuentas!D15+Cuentas!D23-Cuentas!D30-Cuentas!D22-Cuentas!D23+Cuentas!D24+Cuentas!D30)<>0,Cuentas!D81/(Cuentas!D15+Cuentas!D23-Cuentas!D30-Cuentas!D22-Cuentas!D23+Cuentas!D24+Cuentas!D30),\"n.d.\")","v":"n.d."},{"$f":"IF((Cuentas!E15+Cuentas!E23-Cuentas!E30-Cuentas!E22-Cuentas!E23+Cuentas!E24+Cuentas!E30)<>0,Cuentas!E81/(Cuentas!E15+Cuentas!E23-Cuentas!E30-Cuentas!E22-Cuentas!E23+Cuentas!E24+Cuentas!E30),\"n.d.\")","v":"n.d."},{"$f":"IF((Cuentas!F15+Cuentas!F23-Cuentas!F30-Cuentas!F22-Cuentas!F23+Cuentas!F24+Cuentas!F30)<>0,Cuentas!F81/(Cuentas!F15+Cuentas!F23-Cuentas!F30-Cuentas!F22-Cuentas!F23+Cuentas!F24+Cuentas!F30),\"n.d.\")","v":"n.d."},{"$f":"IF((Cuentas!G15+Cuentas!G23-Cuentas!G30-Cuentas!G22-Cuentas!G23+Cuentas!G24+Cuentas!G30)<>0,Cuentas!G81/(Cuentas!G15+Cuentas!G23-Cuentas!G30-Cuentas!G22-Cuentas!G23+Cuentas!G24+Cuentas!G30),\"n.d.\")","v":"n.d."}]
["Rotación del activo corriente (Cifra neta de negocios / Activo corriente) ",{"$f":"IF((Cuentas!C22+Cuentas!C23-Cuentas!C24-Cuentas!C30)<>0,(Cuentas!C81/(Cuentas!C22+Cuentas!C23-Cuentas!C24-Cuentas!C30)),\"n.d.\")","v":"n.d."},{"$f":"IF((Cuentas!D22+Cuentas!D23-Cuentas!D24-Cuentas!D30)<>0,(Cuentas!D81/(Cuentas!D22+Cuentas!D23-Cuentas!D24-Cuentas!D30)),\"n.d.\")","v":"n.d."},{"$f":"IF((Cuentas!E22+Cuentas!E23-Cuentas!E24-Cuentas!E30)<>0,(Cuentas!E81/(Cuentas!E22+Cuentas!E23-Cuentas!E24-Cuentas!E30)),\"n.d.\")","v":"n.d."},{"$f":"IF((Cuentas!F22+Cuentas!F23-Cuentas!F24-Cuentas!F30)<>0,(Cuentas!F81/(Cuentas!F22+Cuentas!F23-Cuentas!F24-Cuentas!F30)),\"n.d.\")","v":"n.d."},{"$f":"IF((Cuentas!G22+Cuentas!G23-Cuentas!G24-Cuentas!G30)<>0,(Cuentas!G81/(Cuentas!G22+Cuentas!G23-Cuentas!G24-Cuentas!G30)),\"n.d.\")","v":"n.d."}]
["Rotación de stocks (Cifra neta de negocios / Existencias) ",{"$f":"IF(Cuentas!C25<>0,(Cuentas!C81/Cuentas!C25),\"n.d.\")","v":"n.d."},{"$f":"IF(Cuentas!D25<>0,(Cuentas!D81/Cuentas!D25),\"n.d.\")","v":"n.d."},{"$f":"IF(Cuentas!E25<>0,(Cuentas!E81/Cuentas!E25),\"n.d.\")","v":"n.d."},{"$f":"IF(Cuentas!F25<>0,(Cuentas!F81/Cuentas!F25),\"n.d.\")","v":"n.d."},{"$f":"IF(Cuentas!G25<>0,(Cuentas!G81/Cuentas!G25),\"n.d.\")","v":"n.d."}]
["PLAZOS"]
["Cobro ((Deudores comerciales / Cifra neta de negocios)x365) ",{"$f":"IF((Cuentas!C81)<>0,(365*((Cuentas!C22+Cuentas!C27)/(Cuentas!C81))),\"n.d.\")","v":"n.d."},{"$f":"IF((Cuentas!D81)<>0,(365*((Cuentas!D22+Cuentas!D27)/(Cuentas!D81))),\"n.d.\")","v":"n.d."},{"$f":"IF((Cuentas!E81)<>0,(365*((Cuentas!E22+Cuentas!E27)/(Cuentas!E81))),\"n.d.\")","v":"n.d."},{"$f":"IF((Cuentas!F81)<>0,(365*((Cuentas!F22+Cuentas!F27)/(Cuentas!F81))),\"n.d.\")","v":"n.d."},{"$f":"IF((Cuentas!G81)<>0,(365*((Cuentas!G22+Cuentas!G27)/(Cuentas!G81))),\"n.d.\")","v":"n.d."}]
["Financiación de clientes por acreedores comerciales (Acreedores comerciales / Deudores comerciales) ",{"$f":"IF((Cuentas!C22+Cuentas!C27)<>0,(Cuentas!C62+Cuentas!C73)/(Cuentas!C22+Cuentas!C27),\"n.d.\")","v":"n.d."},{"$f":"IF((Cuentas!D22+Cuentas!D27)<>0,(Cuentas!D62+Cuentas!D73)/(Cuentas!D22+Cuentas!D27),\"n.d.\")","v":"n.d."},{"$f":"IF((Cuentas!E22+Cuentas!E27)<>0,(Cuentas!E62+Cuentas!E73)/(Cuentas!E22+Cuentas!E27),\"n.d.\")","v":"n.d."},{"$f":"IF((Cuentas!F22+Cuentas!F27)<>0,(Cuentas!F62+Cuentas!F73)/(Cuentas!F22+Cuentas!F27),\"n.d.\")","v":"n.d."},{"$f":"IF((Cuentas!G22+Cuentas!G27)<>0,(Cuentas!G62+Cuentas!G73)/(Cuentas!G22+Cuentas!G27),\"n.d.\")","v":"n.d."}]
["MARGEN"]
["VAB / Cifra neta de negocios",{"$f":"IF(Cuentas!C81<>0,((Cuentas!C81+Cuentas!C82+Cuentas!C83+Cuentas!C84+Cuentas!C85+Cuentas!C87)/Cuentas!C81),\"n.d.\")","v":"n.d."},{"$f":"IF(Cuentas!D81<>0,((Cuentas!D81+Cuentas!D82+Cuentas!D83+Cuentas!D84+Cuentas!D85+Cuentas!D87)/Cuentas!D81),\"n.d.\")","v":"n.d."},{"$f":"IF(Cuentas!E81<>0,((Cuentas!E81+Cuentas!E82+Cuentas!E83+Cuentas!E84+Cuentas!E85+Cuentas!E87)/Cuentas!E81),\"n.d.\")","v":"n.d."},{"$f":"IF(Cuentas!F81<>0,((Cuentas!F81+Cuentas!F82+Cuentas!F83+Cuentas!F84+Cuentas!F85+Cuentas!F87)/Cuentas!F81),\"n.d.\")","v":"n.d."},{"$f":"IF(Cuentas!G81<>0,((Cuentas!G81+Cuentas!G82+Cuentas!G83+Cuentas!G84+Cuentas!G85+Cuentas!G87)/Cuentas!G81),\"n.d.\")","v":"n.d."}]
["Resultado económico neto / Cifra neta de negocios",{"$f":"IF(Cuentas!C81<>0,((Cuentas!C81+Cuentas!C82+Cuentas!C83+Cuentas!C84+Cuentas!C85+Cuentas!C86+Cuentas!C87+Cuentas!C88+Cuentas!C90)/Cuentas!C81),\"n.d.\")","v":"n.d."},{"$f":"IF(Cuentas!D81<>0,((Cuentas!D81+Cuentas!D82+Cuentas!D83+Cuentas!D84+Cuentas!D85+Cuentas!D86+Cuentas!D87+Cuentas!D88+Cuentas!D90)/Cuentas!D81),\"n.d.\")","v":"n.d."},{"$f":"IF(Cuentas!E81<>0,((Cuentas!E81+Cuentas!E82+Cuentas!E83+Cuentas!E84+Cuentas!E85+Cuentas!E86+Cuentas!E87+Cuentas!E88+Cuentas!E90)/Cuentas!E81),\"n.d.\")","v":"n.d."},{"$f":"IF(Cuentas!F81<>0,((Cuentas!F81+Cuentas!F82+Cuentas!F83+Cuentas!F84+Cuentas!F85+Cuentas!F86+Cuentas!F87+Cuentas!F88+Cuentas!F90)/Cuentas!F81),\"n.d.\")","v":"n.d."},{"$f":"IF(Cuentas!G81<>0,((Cuentas!G81+Cuentas!G82+Cuentas!G83+Cuentas!G84+Cuentas!G85+Cuentas!G86+Cuentas!G87+Cuentas!G88+Cuentas!G90)/Cuentas!G81),\"n.d.\")","v":"n.d."}]
["RENTABILIDAD Y AUTOFINANCIACIÓN"]
["Rentabilidad económica (Resultado económico neto / Total activo) ",{"$f":"IF((Cuentas!C15+Cuentas!C23-Cuentas!C30)<>0,(Cuentas!C81+Cuentas!C82+Cuentas!C83+Cuentas!C84+Cuentas!C85+Cuentas!C86+Cuentas!C87+Cuentas!C88+Cuentas!C90)/(Cuentas!C15+Cuentas!C23-Cuentas!C30),\"n.d.\")","v":"n.d."},{"$f":"IF((Cuentas!D15+Cuentas!D23-Cuentas!D30)<>0,(Cuentas!D81+Cuentas!D82+Cuentas!D83+Cuentas!D84+Cuentas!D85+Cuentas!D86+Cuentas!D87+Cuentas!D88+Cuentas!D90)/(Cuentas!D15+Cuentas!D23-Cuentas!D30),\"n.d.\")","v":"n.d."},{"$f":"IF((Cuentas!E15+Cuentas!E23-Cuentas!E30)<>0,(Cuentas!E81+Cuentas!E82+Cuentas!E83+Cuentas!E84+Cuentas!E85+Cuentas!E86+Cuentas!E87+Cuentas!E88+Cuentas!E90)/(Cuentas!E15+Cuentas!E23-Cuentas!E30),\"n.d.\")","v":"n.d."},{"$f":"IF((Cuentas!F15+Cuentas!F23-Cuentas!F30)<>0,(Cuentas!F81+Cuentas!F82+Cuentas!F83+Cuentas!F84+Cuentas!F85+Cuentas!F86+Cuentas!F87+Cuentas!F88+Cuentas!F90)/(Cuentas!F15+Cuentas!F23-Cuentas!F30),\"n.d.\")","v":"n.d."},{"$f":"IF((Cuentas!G15+Cuentas!G23-Cuentas!G30)<>0,(Cuentas!G81+Cuentas!G82+Cuentas!G83+Cuentas!G84+Cuentas!G85+Cuentas!G86+Cuentas!G87+Cuentas!G88+Cuentas!G90)/(Cuentas!G15+Cuentas!G23-Cuentas!G30),\"n.d.\")","v":"n.d."}]
["Rentabilidad financiera (Resultado del ejercicio / Total Patrimonio Neto) ",{"$f":"IF((Cuentas!C39+Cuentas!C51+Cuentas!C52-Cuentas!C30)<>0,Cuentas!C105/(Cuentas!C39+Cuentas!C51+Cuentas!C52-Cuentas!C30),\"n.d.\")","v":"n.d."},{"$f":"IF((Cuentas!D39+Cuentas!D51+Cuentas!D52-Cuentas!D30)<>0,Cuentas!D105/(Cuentas!D39+Cuentas!D51+Cuentas!D52-Cuentas!D30),\"n.d.\")","v":"n.d."},{"$f":"IF((Cuentas!E39+Cuentas!E51+Cuentas!E52-Cuentas!E30)<>0,Cuentas!E105/(Cuentas!E39+Cuentas!E51+Cuentas!E52-Cuentas!E30),\"n.d.\")","v":"n.d."},{"$f":"IF((Cuentas!F39+Cuentas!F51+Cuentas!F52-Cuentas!F30)<>0,Cuentas!F105/(Cuentas!F39+Cuentas!F51+Cuentas!F52-Cuentas!F30),\"n.d.\")","v":"n.d."},{"$f":"IF((Cuentas!G39+Cuentas!G51+Cuentas!G52-Cuentas!G30)<>0,Cuentas!G105/(Cuentas!G39+Cuentas!G51+Cuentas!G52-Cuentas!G30),\"n.d.\")","v":"n.d."}]
["Resultado económico bruto / Total Activo",{"$f":"IF((Cuentas!C15+Cuentas!C23-Cuentas!C30)<>0,(Cuentas!C81+Cuentas!C82+Cuentas!C83+Cuentas!C84+Cuentas!C85+Cuentas!C86+Cuentas!C87)/(Cuentas!C15+Cuentas!C23-Cuentas!C30),\"n.d.\")","v":"n.d."},{"$f":"IF((Cuentas!D15+Cuentas!D23-Cuentas!D30)<>0,(Cuentas!D81+Cuentas!D82+Cuentas!D83+Cuentas!D84+Cuentas!D85+Cuentas!D86+Cuentas!D87)/(Cuentas!D15+Cuentas!D23-Cuentas!D30),\"n.d.\")","v":"n.d."},{"$f":"IF((Cuentas!E15+Cuentas!E23-Cuentas!E30)<>0,(Cuentas!E81+Cuentas!E82+Cuentas!E83+Cuentas!E84+Cuentas!E85+Cuentas!E86+Cuentas!E87)/(Cuentas!E15+Cuentas!E23-Cuentas!E30),\"n.d.\")","v":"n.d."},{"$f":"IF((Cuentas!F15+Cuentas!F23-Cuentas!F30)<>0,(Cuentas!F81+Cuentas!F82+Cuentas!F83+Cuentas!F84+Cuentas!F85+Cuentas!F86+Cuentas!F87)/(Cuentas!F15+Cuentas!F23-Cuentas!F30),\"n.d.\")","v":"n.d."},{"$f":"IF((Cuentas!G15+Cuentas!G23-Cuentas!G30)<>0,(Cuentas!G81+Cuentas!G82+Cuentas!G83+Cuentas!G84+Cuentas!G85+Cuentas!G86+Cuentas!G87)/(Cuentas!G15+Cuentas!G23-Cuentas!G30),\"n.d.\")","v":"n.d."}]
["Resultado económico bruto / Cifra neta de negocios",{"$f":"IF(Cuentas!C81<>0,(Cuentas!C81+Cuentas!C82+Cuentas!C83+Cuentas!C84+Cuentas!C85+Cuentas!C86+Cuentas!C87)/Cuentas!C81,\"n.d.\")","v":"n.d."},{"$f":"IF(Cuentas!D81<>0,(Cuentas!D81+Cuentas!D82+Cuentas!D83+Cuentas!D84+Cuentas!D85+Cuentas!D86+Cuentas!D87)/Cuentas!D81,\"n.d.\")","v":"n.d."},{"$f":"IF(Cuentas!E81<>0,(Cuentas!E81+Cuentas!E82+Cuentas!E83+Cuentas!E84+Cuentas!E85+Cuentas!E86+Cuentas!E87)/Cuentas!E81,\"n.d.\")","v":"n.d."},{"$f":"IF(Cuentas!F81<>0,(Cuentas!F81+Cuentas!F82+Cuentas!F83+Cuentas!F84+Cuentas!F85+Cuentas!F86+Cuentas!F87)/Cuentas!F81,\"n.d.\")","v":"n.d."},{"$f":"IF(Cuentas!G81<>0,(Cuentas!G81+Cuentas!G82+Cuentas!G83+Cuentas!G84+Cuentas!G85+Cuentas!G86+Cuentas!G87)/Cuentas!G81,\"n.d.\")","v":"n.d."}]
["CIFRA DE NEGOCIOS"]
["T1. Tasa de variación de la cifra neta de negocios",{"$f":"IF(Cuentas!D81<>0,100*(Cuentas!C81-Cuentas!D81)/Cuentas!D81,\"n.d.\")","v":"n.d."},{"$f":"IF(Cuentas!E81<>0,100*(Cuentas!D81-Cuentas!E81)/Cuentas!E81,\"n.d.\")","v":"n.d."},{"$f":"IF(Cuentas!F81<>0,100*(Cuentas!E81-Cuentas!F81)/Cuentas!F81,\"n.d.\")","v":"n.d."},{"$f":"IF(Cuentas!G81<>0,100*(Cuentas!F81-Cuentas!G81)/Cuentas!G81,\"n.d.\")","v":"n.d."}]